bitfinex/quotes_BTCUSD_20241025
["timestamp","ask_amount","ask_price","bid_price","bid_amount"]
[1729857881116,0.30203181,68246.0,68245.0,0.001648]
[1729857881347,0.15550381,68246.0,68245.0,0.001648]
[1729857881789,0.30203181,68246.0,68245.0,0.001648]
[1729857882494,0.15550381,68246.0,68245.0,0.001648]
[1729857882699,0.30203181,68246.0,68245.0,0.001648]
[1729857883347,0.30203181,68246.0,68244.0,0.001648]
[1729857884003,0.15153,68245.0,68244.0,0.001648]
[1729857884435,0.15153,68245.0,68230.0,0.005]
[1729857884436,0.15550381,68245.0,68241.0,0.001648]
[1729857884653,0.31144483,68242.0,68241.0,0.001648]
[1729857885760,0.15050381,68244.0,68241.0,0.148187]
[1729857886030,0.15050381,68244.0,68241.0,0.001648]
[1729857886211,0.146535,68243.0,68241.0,0.001648]
[1729857886434,0.29703881,68243.0,68241.0,0.001648]
[1729857887315,0.15050381,68243.0,68241.0,0.001648]
[1729857887514,0.146537,68242.0,68241.0,0.001648]
[1729857890768,0.29703981,68243.0,68241.0,0.001648]
[1729857890966,0.15050381,68243.0,68241.0,0.001648]
[1729857891176,0.005,68245.0,68242.0,0.22144961]
[1729857891395,0.0947,68260.0,68254.0,0.001648]
[1729857891634,0.005,68263.0,68260.0,0.001648]
[1729857891837,0.005,68263.0,68254.0,0.0909]
[1729857891838,0.005,68263.0,68262.0,0.001648]
[1729857892042,0.151492,68263.0,68262.0,0.001648]
[1729857892471,0.005,68263.0,68262.0,0.001648]
[1729857892899,0.005,68264.0,68262.0,0.001648]
[1729857893112,0.151492,68263.0,68262.0,0.001648]
[1729857894390,0.146492,68263.0,68262.0,0.001648]
[1729857894595,0.151492,68263.0,68262.0,0.001648]
[1729857895646,0.146492,68263.0,68262.0,0.001648]
[1729857896088,0.151492,68263.0,68262.0,0.001648]
[1729857898753,0.152316,68263.0,68262.0,0.001648]
[1729857898978,0.146505,68257.0,68256.0,0.001648]
[1729857903006,0.53686125,68257.0,68249.0,0.001648]
[1729857903207,0.00182298,68259.0,68250.0,0.22309761]
[1729857903208,0.31142483,68251.0,68250.0,0.22309761]
[1729857903408,0.31142483,68251.0,68242.0,0.0765]
[1729857903409,0.45794383,68251.0,68249.0,0.001648]
[1729857903608,0.14652,68250.0,68249.0,0.001648]
[1729857903880,0.45794383,68251.0,68242.0,0.223036]
[1729857903881,0.45794383,68251.0,68248.0,0.001648]
[1729857904098,0.44354481,68250.0,68248.0,0.001648]
[1729857904308,0.146522,68249.0,68248.0,0.001648]
[1729857904967,0.146528,68246.0,68245.0,0.001648]
[1729857905211,0.45794383,68251.0,68245.0,0.001648]
[1729857905212,0.15050381,68248.0,68245.0,0.001648]
[1729857905421,0.29702781,68248.0,68245.0,0.001648]
[1729857905639,0.15050381,68248.0,68245.0,0.148178]
[1729857905856,0.15050381,68248.0,68245.0,0.001648]
[1729857906061,0.15050381,68248.0,68246.0,0.146528]
[1729857906334,0.15050381,68248.0,68245.0,0.001648]
[1729857906548,0.15050381,68248.0,68246.0,0.001648]
[1729857906759,0.16490783,68255.0,68253.0,0.001648]
[1729857906998,0.29701381,68255.0,68253.0,0.001648]
[1729857907206,0.15050381,68255.0,68253.0,0.001648]
[1729857908106,0.29701281,68255.0,68253.0,0.001648]
[1729857908360,0.15050381,68255.0,68253.0,0.001648]
[1729857908585,0.293005,68258.0,68253.0,0.001648]
[1729857908809,0.29701081,68257.0,68253.0,0.001648]
[1729857909064,0.15050381,68257.0,68253.0,0.001648]
[1729857909286,0.146511,68254.0,68253.0,0.001648]
[1729857909527,0.16490783,68255.0,68253.0,0.001648]
[1729857909758,0.146511,68254.0,68253.0,0.001648]
[1729857910659,0.146511,68254.0,68247.0,0.001648]
[1729857910660,0.15050381,68254.0,68247.0,0.001648]
[1729857910874,0.22144961,68256.0,68247.0,0.001648]
[1729857910875,0.146524,68248.0,68247.0,0.001648]
[1729857911526,0.31142983,68249.0,68247.0,0.001648]
[1729857911742,0.46193364,68249.0,68247.0,0.001648]
[1729857911962,0.31541164,68249.0,68247.0,0.001648]
[1729857914306,0.15050381,68249.0,68247.0,0.001648]
[1729857915462,0.15050381,68249.0,68248.0,0.146524]
[1729857916151,0.16490783,68253.0,68252.0,0.001648]
[1729857916581,0.31142083,68253.0,68252.0,0.001648]
[1729857916811,0.16490783,68253.0,68252.0,0.001648]
[1729857917490,0.31142083,68253.0,68252.0,0.001648]
[1729857917725,0.60844064,68253.0,68249.0,0.001648]
[1729857917942,0.15050381,68252.0,68249.0,0.001648]
[1729857918162,0.146519,68251.0,68249.0,0.001648]
[1729857919282,0.146518,68251.0,68249.0,0.001648]
[1729857919727,0.15050381,68252.0,68249.0,0.001648]
[1729857919961,0.14834298,68250.0,68249.0,0.001648]
[1729857920205,0.14652,68250.0,68249.0,0.001648]
[1729857920451,0.146522,68249.0,68247.0,0.001648]
[1729857920722,0.146524,68248.0,68247.0,0.001648]
[1729857920945,0.293045,68249.0,68244.0,0.001648]
[1729857920946,0.146522,68249.0,68248.0,0.001648]
[1729857922741,0.146522,68249.0,68247.0,0.001648]
[1729857923424,0.146524,68248.0,68247.0,0.001648]
[1729857923899,0.14653,68245.0,68244.0,0.001648]
[1729857924137,0.46194164,68245.0,68244.0,0.001648]
[1729857924371,0.15050381,68245.0,68244.0,0.001648]
[1729857924835,0.29703381,68245.0,68244.0,0.001648]
[1729857925531,0.15050381,68245.0,68244.0,0.001648]
[1729857926001,0.29703381,68245.0,68244.0,0.001648]
[1729857926233,0.15050381,68245.0,68244.0,0.001648]
[1729857926889,0.29703381,68245.0,68244.0,0.001648]
[1729857927839,0.15050381,68245.0,68244.0,0.001648]
[1729857929878,0.29703381,68245.0,68244.0,0.001648]
[1729857930106,0.04886123,68251.0,68245.0,0.001648]
[1729857930338,0.29702381,68250.0,68246.0,0.146528]
[1729857930590,0.15050381,68250.0,68245.0,0.001648]
[1729857930816,0.146523,68249.0,68245.0,0.148178]
[1729857931047,0.15050381,68248.0,68245.0,0.148178]
[1729857931500,0.15050381,68248.0,68244.0,0.001648]
[1729857931501,0.04886123,68251.0,68249.0,0.001648]
[1729857931725,0.005,68251.0,68249.0,0.001648]
[1729857931947,0.005,68251.0,68250.0,0.001648]
[1729857933117,0.000824,68255.0,68250.0,0.001648]
[1729857933350,0.000824,68255.0,68254.0,0.148159]
[1729857933577,0.000824,68255.0,68254.0,0.317759]
[1729857938866,0.000824,68255.0,68254.0,0.171248]
[1729857939316,0.000824,68255.0,68254.0,0.078848]
[1729857939538,0.147333,68255.0,68254.0,0.001648]
[1729857939747,0.147333,68255.0,68252.0,0.00165]
[1729857939748,0.146513,68253.0,68252.0,0.003298]
[1729857940214,0.31142083,68253.0,68252.0,0.003298]
[1729857940432,0.146513,68253.0,68252.0,0.003298]
[1729857940645,0.146513,68253.0,68252.0,0.00165]
[1729857940868,0.146513,68253.0,68252.0,0.003298]
[1729857941522,0.46192464,68253.0,68252.0,0.00165]
[1729857943582,0.15050381,68253.0,68252.0,0.00165]
[1729857944039,0.000824,68255.0,68254.0,0.001648]
[1729857945168,0.147333,68255.0,68254.0,0.001648]
[1729857945592,0.000824,68255.0,68254.0,0.001648]
[1729857946309,0.000824,68255.0,68254.0,0.148159]
[1729857946537,0.000824,68255.0,68254.0,0.326859]
[1729857947211,0.000824,68255.0,68254.0,0.32703602]
[1729857947431,0.000824,68255.0,68254.0,0.326859]
[1729857947664,0.000824,68255.0,68254.0,0.32703602]
[1729857948335,0.000824,68255.0,68254.0,0.33161686]
[1729857948778,0.000824,68255.0,68254.0,0.33143984]
[1729857949433,0.000824,68255.0,68254.0,0.33308984]
[1729857950547,0.000824,68255.0,68254.0,0.33308989]
[1729857951459,0.000824,68255.0,68254.0,0.328509]
[1729857953291,0.000824,68255.0,68254.0,0.33308987]
[1729857954020,0.000824,68255.0,68254.0,0.328509]
[1729857954721,0.000824,68255.0,68254.0,0.33308996]
[1729857954959,0.000824,68255.0,68254.0,0.328509]
[1729857955449,0.000824,68255.0,68254.0,0.33308988]
[1729857958175,0.000824,68255.0,68254.0,0.328509]
[1729857958635,0.000824,68255.0,68254.0,0.33308993]
[1729857960361,0.000824,68255.0,68254.0,0.328509]
[1729857964780,0.000824,68255.0,68254.0,0.181998]
[1729857965025,0.147333,68255.0,68254.0,0.003298]
[1729857967685,0.39925979,68255.0,68254.0,0.00165]
[1729857968344,0.30283681,68255.0,68254.0,0.00165]
[1729857968582,0.29783681,68255.0,68254.0,0.00165]
[1729857968800,0.30283681,68255.0,68254.0,0.00165]
[1729857969491,0.29783681,68255.0,68254.0,0.00165]
[1729857969712,0.30283681,68255.0,68254.0,0.00165]
[1729857970392,0.41838351,68255.0,68254.0,0.00165]
[1729857971352,0.46223974,68255.0,68254.0,0.00165]
[1729857972236,0.45723974,68255.0,68254.0,0.00165]
[1729857972448,0.64740183,68255.0,68254.0,0.00165]
[1729857974413,0.71318618,68255.0,68254.0,0.00165]
[1729857975072,0.7113632,68255.0,68254.0,0.00165]
[1729857975281,0.71318618,68255.0,68254.0,0.00165]
[1729857976189,0.7113632,68255.0,68254.0,0.00165]
[1729857979718,0.6119632,68255.0,68254.0,0.00165]
[1729857979949,0.61378618,68255.0,68254.0,0.00165]
[1729857980386,0.61380126,68255.0,68254.0,0.00165]
[1729857981070,0.53550126,68255.0,68254.0,0.00165]
[1729857981291,0.53367828,68255.0,68254.0,0.00165]
[1729857981763,0.46787885,68255.0,68254.0,0.00165]
[1729857982211,0.15132781,68255.0,68254.0,0.00165]
[1729857982424,0.000824,68255.0,68254.0,0.149809]
[1729857983528,0.000824,68255.0,68254.0,0.003298]
[1729857983763,0.000824,68255.0,68254.0,0.149809]
[1729857984835,0.000824,68255.0,68254.0,0.003298]
[1729857985041,0.000824,68255.0,68254.0,0.149809]
[1729857985878,0.000824,68255.0,68254.0,0.231709]
[1729857990321,0.000824,68255.0,68254.0,0.085198]
[1729857991219,0.000824,68255.0,68254.0,0.23188602]
[1729857991444,0.000824,68255.0,68254.0,0.231709]
[1729857993607,0.000824,68255.0,68254.0,0.23628987]
[1729857993887,0.000824,68255.0,68254.0,0.231709]
[1729857994102,0.000824,68255.0,68254.0,0.23628988]
[1729857994778,0.000824,68255.0,68254.0,0.231709]
[1729858000234,0.000824,68255.0,68254.0,0.23188602]
[1729858000653,0.000824,68255.0,68254.0,0.231709]
[1729858004181,0.000824,68255.0,68254.0,0.4930446]
[1729858009449,0.19822161,68264.0,68263.0,0.146492]
[1729858009814,0.3895,68265.0,68263.0,0.146492]
[1729858010438,0.3895,68265.0,68261.0,0.29299]
[1729858010660,0.3895,68265.0,68262.0,0.146492]
[1729858011464,0.3895,68265.0,68263.0,0.146491]
[1729858011679,0.3895,68265.0,68262.0,0.146493]
[1729858012509,0.3895,68265.0,68263.0,0.146491]
[1729858013381,0.3895,68265.0,68262.0,0.146493]
[1729858013580,0.3895,68265.0,68261.0,0.29299]
[1729858013581,0.3895,68265.0,68259.0,0.293]
[1729858013978,0.3895,68265.0,68256.0,0.22144961]
[1729858013979,0.3895,68265.0,68263.0,0.146491]
[1729858014162,0.3895,68265.0,68260.0,0.292997]
[1729858014368,0.3895,68265.0,68262.0,0.146494]
[1729858014802,0.3895,68265.0,68260.0,0.146497]
[1729858014803,0.535988,68265.0,68260.0,0.146497]
[1729858015023,0.3895,68265.0,68256.0,0.22144961]
[1729858015240,0.3895,68265.0,68261.0,0.146495]
[1729858015482,0.3895,68265.0,68258.0,0.293005]
[1729858015684,0.3895,68265.0,68261.0,0.146495]
[1729858015917,0.535988,68265.0,68264.0,0.001648]
[1729858016332,0.3895,68265.0,68264.0,0.170948]
[1729858016545,0.3895,68265.0,68264.0,0.001648]
[1729858017837,0.3895,68265.0,68264.0,0.00182502]
[1729858018048,0.38954,68265.0,68264.0,0.001648]
[1729858018470,0.390365,68265.0,68264.0,0.001648]
[1729858023385,0.390365,68265.0,68264.0,0.148138]
[1729858023613,0.390365,68265.0,68264.0,0.001648]
[1729858024903,0.000865,68265.0,68264.0,0.14831502]
[1729858025452,0.000865,68265.0,68264.0,0.148138]
[1729858025631,0.000865,68265.0,68264.0,0.37673316]
[1729858025839,0.000865,68265.0,68264.0,0.32861502]
[1729858026249,0.000865,68265.0,68264.0,0.33361502]
[1729858026665,0.000865,68265.0,68264.0,0.333438]
[1729858028329,0.000865,68265.0,68264.0,0.33361502]
[1729858028755,0.000865,68265.0,68264.0,0.333438]
[1729858028932,0.000865,68265.0,68264.0,0.33361502]
[1729858029357,0.000865,68265.0,68264.0,0.333438]
[1729858031712,0.000865,68265.0,68264.0,0.48394181]
[1729858033007,0.000865,68265.0,68264.0,0.59775974]
[1729858033438,0.000865,68265.0,68264.0,0.59758272]
[1729858034110,0.000865,68265.0,68264.0,0.62058272]
[1729858034586,0.000865,68265.0,68264.0,0.6640984]
[1729858034800,0.000865,68265.0,68264.0,0.685842]
[1729858035283,0.22144961,68287.0,68264.0,0.87000087]
[1729858035522,0.22144961,68284.0,68279.0,0.326905]
[1729858036185,0.22144961,68284.0,68279.0,0.32708202]
[1729858036396,0.00083,68289.0,68279.0,0.32708202]
[1729858036633,0.00083,68289.0,68279.0,0.69885842]
[1729858036839,0.00083,68289.0,68279.0,0.47740881]
[1729858037047,0.00083,68289.0,68279.0,0.52090584]
[1729858037742,0.00083,68289.0,68279.0,0.52108286]
[1729858037968,0.00083,68289.0,68279.0,0.52090584]
[1729858038428,0.00083,68289.0,68279.0,0.47740881]
[1729858041252,0.00083,68289.0,68279.0,0.32708202]
[1729858041479,0.00083,68289.0,68279.0,0.326905]
[1729858041703,0.000865,68280.0,68279.0,0.326905]
[1729858042157,0.000865,68280.0,68279.0,0.32708202]
[1729858042371,0.000865,68280.0,68279.0,0.326905]
[1729858045398,0.000865,68280.0,68279.0,0.32708202]
[1729858045632,0.000865,68280.0,68279.0,0.326905]
[1729858045842,0.000865,68280.0,68279.0,0.32708202]
[1729858046063,0.000865,68280.0,68279.0,0.326905]
[1729858047105,0.000865,68280.0,68279.0,0.32708202]
[1729858047514,0.000865,68280.0,68279.0,0.326905]
[1729858048575,0.000865,68280.0,68279.0,0.47740881]
[1729858050640,0.000865,68280.0,68279.0,0.5208905]
[1729858054456,0.000865,68280.0,68279.0,0.52089696]
[1729858059146,0.000865,68280.0,68279.0,0.47874469]
[1729858060660,0.000865,68280.0,68279.0,0.54398199]
[1729858060830,0.000865,68280.0,68279.0,0.54264611]
[1729858062338,0.000865,68280.0,68279.0,0.70324826]
[1729858063056,0.000865,68280.0,68279.0,0.63801096]
[1729858064348,0.000865,68280.0,68279.0,0.64991538]
[1729858064776,0.000865,68280.0,68279.0,0.64991421]
[1729858064992,0.000865,68280.0,68279.0,0.66163217]
[1729858065197,0.000865,68280.0,68279.0,0.74204571]
[1729858065420,0.000865,68280.0,68279.0,0.80918597]
[1729858065647,0.000865,68280.0,68279.0,0.87697418]
[1729858065874,0.000865,68280.0,68279.0,1.01453909]
[1729858066104,0.000865,68280.0,68279.0,1.02644351]
[1729858066310,0.000865,68280.0,68279.0,0.80058005]
[1729858067436,0.000865,68280.0,68279.0,0.79325425]
[1729858067646,0.000865,68280.0,68279.0,0.80058004]
[1729858067861,0.000865,68280.0,68279.0,0.80192033]
[1729858068316,0.000865,68280.0,68279.0,0.80209735]
[1729858068550,0.000865,68280.0,68279.0,0.80075706]
[1729858068788,0.000865,68280.0,68279.0,0.80058004]
[1729858068995,0.000865,68280.0,68279.0,0.55855325]
[1729858069227,0.000865,68280.0,68279.0,0.55837623]
[1729858069862,0.000865,68280.0,68279.0,0.55855325]
[1729858070088,0.000865,68280.0,68279.0,0.47627623]
[1729858070316,0.000865,68280.0,68279.0,0.47645325]
[1729858071213,0.000865,68280.0,68279.0,0.47627692]
[1729858071450,0.000865,68280.0,68279.0,0.47645394]
[1729858071894,0.000865,68280.0,68279.0,0.47627692]
[1729858073052,0.034,68280.0,68279.0,0.47627692]
[1729858073267,0.00083,68289.0,68279.0,0.47627692]
[1729858073268,0.00083,68289.0,68287.0,0.14644]
[1729858073479,0.00083,68289.0,68287.0,0.15101888]
[1729858074116,0.00083,68289.0,68287.0,0.15266688]
[1729858074342,0.00083,68289.0,68287.0,0.00622688]
[1729858074555,0.00083,68289.0,68287.0,0.15266688]
[1729858075182,0.11381591,68288.0,68287.0,0.00622688]
[1729858075396,0.11381591,68288.0,68287.0,0.001648]
[1729858075621,0.146445,68285.0,68283.0,0.001648]
[1729858075886,0.22865,68283.0,68280.0,0.001648]
[1729858076094,0.22865,68283.0,68280.0,0.22309761]
[1729858076095,0.04393077,68282.0,68280.0,0.22309761]
[1729858076339,0.11364091,68281.0,68279.0,0.31291482]
[1729858076556,0.146455,68280.0,68279.0,0.31126682]
[1729858076766,0.11364091,68281.0,68279.0,0.31126682]
[1729858076767,0.26009391,68281.0,68279.0,0.31126682]
[1729858076977,0.11364091,68281.0,68279.0,0.31126682]
[1729858077420,0.146455,68280.0,68279.0,0.31126682]
[1729858077859,0.239655,68280.0,68279.0,0.31126682]
[1729858078323,0.24370381,68280.0,68279.0,0.31126682]
[1729858078554,0.39015881,68280.0,68279.0,0.31126682]
[1729858080156,0.50379972,68280.0,68279.0,0.31126682]
[1729858080371,0.58459972,68280.0,68279.0,0.31126682]
[1729858081037,0.5997747,68280.0,68279.0,0.31126682]
[1729858081259,0.64359742,68280.0,68279.0,0.31126682]
[1729858081482,0.5997747,68280.0,68279.0,0.31126682]
[1729858081722,0.81341561,68280.0,68279.0,0.31126682]
[1729858081970,0.7855239,68280.0,68279.0,0.31126682]
[1729858082191,0.89916481,68280.0,68279.0,0.31126682]
[1729858082408,0.77047417,68280.0,68279.0,0.31126682]
[1729858082636,0.78659744,68280.0,68279.0,0.31126682]
[1729858082860,0.74283041,68280.0,68279.0,0.31126682]
[1729858083305,0.80848095,68280.0,68279.0,0.31126682]
[1729858083517,0.90021797,68280.0,68279.0,0.31126682]
[1729858083736,0.90021797,68280.0,68269.0,0.00165]
[1729858083737,0.5576818,68270.0,68269.0,0.00165]
[1729858083948,0.70818561,68270.0,68269.0,0.00165]
[1729858084379,0.81471463,68270.0,68269.0,0.00165]
[1729858084805,0.81653761,68270.0,68269.0,0.00165]
[1729858086416,0.83701686,68270.0,68269.0,0.00165]
[1729858086604,0.98752067,68270.0,68269.0,0.00165]
[1729858087086,1.01052067,68270.0,68269.0,0.00165]
[1729858087533,0.313805,68257.0,68256.0,0.22144961]
[1729858087753,0.57794972,68257.0,68256.0,0.22144961]
[1729858088001,0.146509,68255.0,68254.0,0.00165]
[1729858088214,0.29701281,68255.0,68254.0,0.00165]
[1729858089308,0.41565372,68255.0,68254.0,0.00165]
[1729858089521,0.48668104,68255.0,68254.0,0.00165]
[1729858089754,0.58850402,68255.0,68254.0,0.00165]
[1729858089971,0.5174767,68255.0,68254.0,0.00165]
[1729858090616,0.51565372,68255.0,68254.0,0.00165]
[1729858090843,0.5174767,68255.0,68254.0,0.00165]
[1729858091734,0.53803101,68255.0,68254.0,0.00165]
[1729858091961,0.4243901,68255.0,68254.0,0.00165]
[1729858092185,0.53803101,68255.0,68254.0,0.00165]
[1729858092475,0.53620803,68255.0,68254.0,0.00165]
[1729858092684,0.42256712,68255.0,68254.0,0.00165]
[1729858092899,0.53620803,68255.0,68254.0,0.00165]
[1729858094430,0.1,68255.0,68254.0,0.00165]
[1729858094637,0.293015,68256.0,68254.0,0.00165]
[1729858094860,0.251509,68255.0,68254.0,0.00165]
[1729858095070,0.105,68255.0,68254.0,0.00165]
[1729858095273,0.251509,68255.0,68254.0,0.00165]
[1729858095497,0.105,68255.0,68254.0,0.00165]
[1729858095932,0.251509,68255.0,68254.0,0.00165]
[1729858096149,0.005,68255.0,68254.0,0.00165]
[1729858096355,0.251509,68255.0,68254.0,0.00165]
[1729858096993,0.40201281,68255.0,68254.0,0.00165]
[1729858097211,0.53790238,68255.0,68254.0,0.00165]
[1729858097665,0.5360794,68255.0,68254.0,0.00165]
[1729858098318,0.5360794,68255.0,68254.0,0.0009299]
[1729858098784,0.6338794,68255.0,68254.0,0.0009299]
[1729858098989,0.7106794,68255.0,68254.0,0.0009299]
[1729858099439,0.57661281,68255.0,68254.0,0.0009299]
[1729858100100,0.39701281,68255.0,68254.0,0.0009299]
[1729858100360,0.51565372,68255.0,68254.0,0.0009299]
[1729858101689,0.41065372,68255.0,68254.0,0.0009299]
[1729858101904,0.29701281,68255.0,68254.0,0.0009299]
[1729858103922,0.146509,68255.0,68254.0,0.0009299]
[1729858106725,0.3895,68258.0,68254.0,0.0009299]
[1729858106940,0.3895,68258.0,68256.0,0.001648]
[1729858107185,0.3895,68258.0,68256.0,0.294661]
[1729858107406,0.3895,68258.0,68257.0,0.0808]
[1729858108702,0.536002,68258.0,68257.0,0.0808]
[1729858108947,0.3895,68258.0,68257.0,0.0808]
[1729858109579,0.38719768,68258.0,68257.0,0.0808]
[1729858111636,0.292966,68268.0,68257.0,0.082448]
[1729858111840,0.22144961,68264.0,68261.0,0.001648]
[1729858112047,0.146487,68266.0,68261.0,0.148144]
[1729858112257,0.15050381,68266.0,68262.0,0.146494]
[1729858112463,0.29698981,68266.0,68261.0,0.001648]
[1729858112686,0.000825,68269.0,68265.0,0.001648]
[1729858112910,0.000825,68269.0,68257.0,0.76020146]
[1729858112911,0.146492,68263.0,68262.0,0.001648]
[1729858113750,0.14649,68264.0,68262.0,0.001648]
[1729858113962,0.292967,68267.0,68262.0,0.001648]
[1729858114171,0.44347081,68267.0,68262.0,0.001648]
[1729858114401,0.15050381,68267.0,68262.0,0.001648]
[1729858114632,0.146488,68265.0,68262.0,0.001648]
[1729858115540,0.29698881,68267.0,68262.0,0.001648]
[1729858115749,0.146486,68266.0,68262.0,0.001648]
[1729858117211,0.15050381,68267.0,68262.0,0.001648]
[1729858117649,0.29698781,68267.0,68262.0,0.001648]
[1729858117876,0.15050381,68267.0,68262.0,0.001648]
[1729858118100,0.29698781,68267.0,68262.0,0.001648]
[1729858118995,0.15050381,68267.0,68262.0,0.001648]
[1729858119220,0.29698681,68267.0,68262.0,0.001648]
[1729858119673,0.146486,68266.0,68262.0,0.001648]
[1729858119873,0.29698681,68267.0,68262.0,0.001648]
[1729858120088,0.15050381,68267.0,68262.0,0.001648]
[1729858120502,0.29698681,68267.0,68262.0,0.001648]
[1729858120714,0.15050381,68267.0,68262.0,0.001648]
[1729858120928,0.29698781,68267.0,68262.0,0.001648]
[1729858121142,0.15050381,68267.0,68262.0,0.294635]
[1729858121358,0.15050381,68267.0,68262.0,0.148142]
[1729858123719,0.146485,68266.0,68262.0,0.001648]
[1729858123946,0.15050381,68267.0,68262.0,0.001648]
[1729858124217,0.01633404,68266.0,68262.0,0.001648]
[1729858124891,0.29698781,68267.0,68262.0,0.001648]
[1729858125105,0.15050381,68267.0,68262.0,0.001648]
[1729858125735,0.15050381,68267.0,68262.0,0.148141]
[1729858126035,0.29698681,68267.0,68262.0,0.001648]
[1729858126718,0.15050381,68267.0,68262.0,0.14814]
[1729858127625,0.000825,68268.0,68267.0,0.148131]
[1729858128310,0.000825,68268.0,68267.0,0.15271116]
[1729858128537,0.000825,68268.0,68267.0,0.001648]
[1729858128766,0.000825,68268.0,68258.0,0.00165]
[1729858128767,0.14831198,68265.0,68264.0,0.00458027]
[1729858128989,0.14831198,68265.0,68261.0,0.001648]
[1729858128990,0.11545985,68264.0,68261.0,0.001648]
[1729858129216,0.11363687,68264.0,68261.0,0.001648]
[1729858129436,0.146486,68266.0,68261.0,0.001648]
[1729858129667,0.16937822,68266.0,68260.0,0.001648]
[1729858129885,0.16937822,68266.0,68261.0,0.001648]
[1729858130121,0.16937822,68266.0,68260.0,0.001648]
[1729858130353,0.00182298,68263.0,68260.0,0.001648]
[1729858130642,0.15050381,68265.0,68260.0,0.001648]
[1729858130643,0.14649,68264.0,68260.0,0.001648]
[1729858130871,0.29699181,68265.0,68260.0,0.001648]
[1729858131084,0.15050381,68265.0,68261.0,0.146494]
[1729858131290,0.15050381,68265.0,68260.0,0.148145]
[1729858132145,0.15050381,68265.0,68260.0,0.001648]
[1729858132787,0.29699281,68265.0,68260.0,0.001648]
[1729858132991,0.29699181,68265.0,68260.0,0.001648]
[1729858133197,0.15050381,68265.0,68260.0,0.001648]
[1729858133621,0.15050381,68265.0,68261.0,0.146496]
[1729858134317,0.15050381,68265.0,68260.0,0.148146]
[1729858135413,0.15050381,68265.0,68261.0,0.146496]
[1729858135838,0.15050381,68265.0,68260.0,0.148146]
[1729858136686,0.15050381,68265.0,68261.0,0.146496]
[1729858136920,0.15050381,68265.0,68260.0,0.148145]
[1729858137154,0.15050381,68265.0,68260.0,0.001648]
[1729858137331,0.15050381,68265.0,68260.0,0.148145]
[1729858138034,0.29699281,68265.0,68260.0,0.001648]
[1729858138942,0.15050381,68265.0,68260.0,0.001648]
[1729858139157,0.15050381,68265.0,68260.0,0.148146]
[1729858139597,0.17101232,68265.0,68260.0,0.148146]
[1729858139835,0.15050381,68265.0,68261.0,0.146496]
[1729858140067,0.29699181,68265.0,68260.0,0.001648]
[1729858141407,0.29699181,68265.0,68264.0,0.02833397]
[1729858143392,0.15050381,68265.0,68264.0,0.02833397]
[1729858143607,0.29699081,68265.0,68264.0,0.02833397]
[1729858145179,0.15050381,68265.0,68264.0,0.02833397]
[1729858145366,0.15055381,68265.0,68264.0,0.02833397]
[1729858146259,5e-05,68265.0,68264.0,0.02833397]
[1729858146484,5e-05,68265.0,68264.0,0.25387197]
[1729858146699,5e-05,68265.0,68264.0,0.2584527]
[1729858147142,5e-05,68265.0,68264.0,0.25387197]
[1729858147372,5e-05,68265.0,68264.0,0.25845264]
[1729858151221,5e-05,68265.0,68264.0,0.11196264]
[1729858152564,5e-05,68265.0,68264.0,0.10738197]
[1729858153014,5e-05,68265.0,68264.0,0.10573397]
[1729858153253,5e-05,68265.0,68264.0,0.02833397]
[1729858153254,0.5203134,68265.0,68264.0,0.02833397]
[1729858153476,0.29886379,68265.0,68264.0,0.02833397]
[1729858153698,0.36288152,68265.0,68264.0,0.02833397]
[1729858154159,0.29704081,68265.0,68264.0,0.02833397]
[1729858154371,0.36292637,68265.0,68264.0,0.02833397]
[1729858154872,0.37951579,68265.0,68264.0,0.05131386]
[1729858155297,0.75888825,68265.0,68264.0,0.05131386]
[1729858155523,0.99051141,68265.0,68264.0,0.05131386]
[1729858155730,0.89720374,68265.0,68264.0,0.05131386]
[1729858155951,0.99902672,68265.0,68264.0,0.05131386]
[1729858156199,0.99720374,68265.0,68264.0,0.05131386]
[1729858156428,0.99902672,68265.0,68264.0,0.05131386]
[1729858157113,0.88921745,68265.0,68264.0,0.05131386]
[1729858158229,0.88739447,68265.0,68264.0,0.05131386]
[1729858158431,0.86552125,68265.0,68264.0,0.05131386]
[1729858158649,0.75270938,68265.0,68264.0,0.05131386]
[1729858161946,0.75453236,68265.0,68264.0,0.05131386]
[1729858162661,0.86634625,68265.0,68264.0,0.05131386]
[1729858162873,0.90041433,68265.0,68264.0,0.05131386]
[1729858163092,0.90223731,68265.0,68264.0,0.05131386]
[1729858163538,0.90041433,68265.0,68264.0,0.05131386]
[1729858163757,0.89968032,68265.0,68264.0,0.05131386]
[1729858164179,1.00944315,68265.0,68264.0,0.05131386]
[1729858164388,0.86356118,68265.0,68264.0,0.05131386]
[1729858164593,0.8617382,68265.0,68264.0,0.05131386]
[1729858164823,0.76736118,68265.0,68264.0,0.05131386]
[1729858165035,0.68670918,68265.0,68264.0,0.05131386]
[1729858165210,0.69006118,68265.0,68264.0,0.05131386]
[1729858165667,0.57694635,68265.0,68264.0,0.05131386]
[1729858165907,0.57512337,68265.0,68264.0,0.05131386]
[1729858166127,0.57694635,68265.0,68264.0,0.05131386]
[1729858167001,0.55161715,68265.0,68264.0,0.05131386]
[1729858167219,0.66136746,68265.0,68264.0,0.05131386]
[1729858170013,0.65954448,68265.0,68264.0,0.05131386]
[1729858170525,0.80045803,68265.0,68264.0,0.05131386]
[1729858171202,0.79863505,68265.0,68264.0,0.05131386]
[1729858171436,0.80698705,68265.0,68264.0,0.05131386]
[1729858171664,0.69723674,68265.0,68264.0,0.05131386]
[1729858171926,0.74231985,68265.0,68264.0,0.05131386]
[1729858172165,0.74231985,68265.0,68258.0,0.00165]
[1729858172166,0.81016972,68265.0,68258.0,0.00165]
[1729858172375,0.66245253,68259.0,68258.0,0.00165]
[1729858172596,1.0829417,68259.0,68258.0,0.00165]
[1729858173025,1.08089993,68259.0,68258.0,0.00165]
[1729858173287,1.07907695,68259.0,68258.0,0.00165]
[1729858174216,1.10383904,68259.0,68258.0,0.00165]
[1729858174455,1.15523699,68259.0,68258.0,0.00165]
[1729858174902,1.32453699,68259.0,68258.0,0.00165]